Workbook

Sheet маршрут 12,10
A1: ПАТ "УКРТРАНСГАЗ" | G1: ПАСПОРТ ФІЗИКО-ХІМІЧНИХ ПОКАЗНИКІВ ПРИРОДНОГО ГАЗУ № 12
A2: Філія "УМГ "Київтрансгаз" | G2: переданого Красилівським ЛВУМГ та прийнятого ПАТ "Хмельницькгаз"
A3: Красилівське ЛВУМГ | G3: Маршрут № 12
A4: Вимірювальна хіміко-аналітична лабораторія
A5: Свідоцтво № 27"Ч"-17 чинно до 10.02.2020 р. | K5: по газопроводу КЗУ 2 | V5: за період з | X5: 2017-10-01 | Z5: по | AA5: 2017-10-31
A7: Число місяця | B7: Компонентний склад, % мол. | N7: Фізико-хімічні показники газу обчислені на основі компонентного складу, 101,325 кПа | X7: Температура точки роси за вологою (Р = 3.92 МПа), °С | Y7: Температура точки роси за вуглеводнями, °С | Z7: Вміст сірководню, г/м3 | AA7: Вміст меркаптанової сірки, г/м3 | AB7: Вміст механічних домішок, г/м3
N8: Густина абсолютна, кг/м3,при 20 °С, | O8: Температура вимірювання/згоряння при 20/25°С
B9: метан, С1 | C9: етан, С2 | D9: пропан, С3 | E9: ізо-бутан, і-С4 | F9: н-бутан, н-С4 | G9: нео-пентан, нео-С5 | H9: ізо-пентан, і-С5 | I9: н-пентан, н-С5 | J9: гексани та вищі, С6+ | K9: кисень, О2 | L9: азот, N2 | M9: діоксид вуглецю, CО2 | O9: Теплота згоряння нижча | R9: Теплота згоряння вища | U9: Число Воббе вище
O10: ккал/м³ | P10: МДж/м³ | Q10: кВт⋅год/м³ | R10: ккал/м³ | S10: МДж/м³ | T10: кВт⋅год/м³ | U10: ккал/м³ | V10: МДж/м³ | W10: кВт⋅год/м³
A11: 1 | O11: =P11*238.8459 -> 8250 | P11: 34.54 | Q11: =P11/3.6 -> 9.59 | R11: =S11*238.8459 -> 9138 | S11: 38.26 | T11: =S11/3.6 -> 10.63 | W11: =V11/3.6 -> 0 | AC11: =SUM(B11:M11)+$K$42+$N$42 -> 0
A12: 2 | B12: 89.7732 | C12: 4.9486 | D12: 1.0997 | E12: 0.1192 | F12: 0.1916 | G12: 0.0043 | H12: 0.0594 | I12: 0.0443 | J12: 0.0785 | K12: 0.0061 | L12: 1.7129 | M12: 1.9722 | N12: 0.7518 | O12: 8243 | P12: 34.51 | Q12: =P12/3.6 -> 9.59 | R12: 9129 | S12: 38.22 | T12: =S12/3.6 -> 10.62 | U12: 11555 | V12: 48.38 | W12: =V12/3.6 -> 13.44 | X12: -6 | Y12: -8 | AC12: 100.01
A13: 3 | O13: 8243 | P13: 34.51 | Q13: =P13/3.6 -> 9.59 | R13: 9129 | S13: 38.22 | T13: =S13/3.6 -> 10.62 | W13: =V13/3.6 -> 0 | AC13: 0 | AD13: =IF(AC13=100,"ОК"," ") -> 
A14: 4 | O14: 8243 | P14: 34.51 | Q14: 9.59 | R14: 9129 | S14: 38.22 | T14: 10.62 | W14: =V14/3.6 -> 0 | AC14: 0 | AD14: =IF(AC14=100,"ОК"," ") -> 
A15: 5 | O15: 8243 | P15: 34.51 | Q15: 9.59 | R15: 9129 | S15: 38.22 | T15: 10.62 | W15: 0 | AC15: 0
A16: 6 | O16: 8243 | P16: 34.51 | Q16: 9.59 | R16: 9129 | S16: 38.22 | T16: 10.62 | W16: =V16/3.6 -> 0 | AC16: 0
A17: 7 | O17: 8243 | P17: 34.51 | Q17: 9.59 | R17: 9129 | S17: 38.22 | T17: 10.62 | W17: =V17/3.6 -> 0 | AC17: 0
A18: 8 | O18: 8243 | P18: 34.51 | Q18: 9.59 | R18: 9129 | S18: 38.22 | T18: 10.62 | W18: =V18/3.6 -> 0 | AC18: 0
A19: 9 | B19: 89.5882 | C19: 4.9593 | D19: 1.2219 | E19: 0.135 | F19: 0.2213 | G19: 0.0044 | H19: 0.0546 | I19: 0.0494 | J19: 0.0798 | K19: 0.0064 | L19: 1.7737 | M19: 1.9058 | N19: 0.7539 | O19: 8271 | P19: 34.63 | Q19: 9.62 | R19: 9160 | S19: 38.35 | T19: 10.65 | U19: 11576 | V19: 48.47 | W19: =V19/3.6 -> 13.46 | X19: -8.6 | Y19: -7.7 | AC19: 100 | AD19: ОК
A20: 10 | O20: 8271 | P20: 34.63 | Q20: 9.62 | R20: 9160 | S20: 38.35 | T20: 10.65 | W20: =V20/3.6 -> 0 | AC20: 0
A21: 11 | O21: 8271 | P21: 34.63 | Q21: 9.62 | R21: 9160 | S21: 38.35 | T21: 10.65 | W21: =V21/3.6 -> 0 | AB21: 0.0008 | AC21: 0
A22: 12 | O22: 8271 | P22: 34.63 | Q22: 9.62 | R22: 9160 | S22: 38.35 | T22: 10.65 | W22: 0 | Z22: 0.0002 | AA22: 0.0006 | AC22: 0
A23: 13 | O23: 8271 | P23: 34.63 | Q23: 9.62 | R23: 9160 | S23: 38.35 | T23: 10.65 | W23: =V23/3.6 -> 0 | AC23: 0
A24: 14 | O24: 8271 | P24: 34.63 | Q24: 9.62 | R24: 9160 | S24: 38.35 | T24: 10.65 | W24: =V24/3.6 -> 0 | AC24: 0
A25: 15 | O25: 8271 | P25: 34.63 | Q25: 9.62 | R25: 9160 | S25: 38.35 | T25: 10.65 | W25: 0 | AC25: 0
A26: 16 | O26: 8271 | P26: 34.63 | Q26: 9.62 | R26: 9160 | S26: 38.35 | T26: 10.65 | W26: =V26/3.6 -> 0 | AC26: 0
A27: 17 | B27: 89.6463 | C27: 5.03 | D27: 1.1577 | E27: 0.1266 | F27: 0.2061 | G27: 0.0043 | H27: 0.0504 | I27: 0.0453 | J27: 0.0746 | K27: 0.006 | L27: 1.7606 | M27: 1.8921 | N27: 0.7526 | O27: 8262 | P27: 34.59 | Q27: 9.61 | R27: 9148 | S27: 38.3 | T27: 10.64 | U27: 11574 | V27: 48.46 | W27: =V27/3.6 -> 13.46 | X27: -9 | Y27: -8 | AC27: 100 | AD27: ОК
A28: 18 | O28: 8262 | P28: 34.59 | Q28: 9.61 | R28: 9148 | S28: 38.3 | T28: 10.64 | W28: 0 | AC28: 0
A29: 19 | O29: 8262 | P29: 34.59 | Q29: 9.61 | R29: 9148 | S29: 38.3 | T29: 10.64 | W29: 0 | AB29: 0.0008 | AC29: 0
A30: 20 | O30: 8262 | P30: 34.59 | Q30: 9.61 | R30: 9148 | S30: 38.3 | T30: 10.64 | W30: =V30/3.6 -> 0 | AC30: 0 | AD30: =IF(AC30=100,"ОК"," ") -> 
A31: 21 | O31: 8262 | P31: 34.59 | Q31: 9.61 | R31: 9148 | S31: 38.3 | T31: 10.64 | W31: =V31/3.6 -> 0 | AC31: 0
A32: 22 | O32: 8262 | P32: 34.59 | Q32: 9.61 | R32: 9148 | S32: 38.3 | T32: 10.64 | W32: 0 | AC32: 0
A33: 23 | B33: 89.8197 | C33: 4.9776 | D33: 1.1153 | E33: 0.122 | F33: 0.1995 | G33: 0.0043 | H33: 0.0493 | I33: 0.0435 | J33: 0.071 | K33: 0.0059 | L33: 1.7427 | M33: 1.8492 | N33: 0.7508 | O33: 8252 | P33: 34.55 | Q33: 9.6 | R33: 9141 | S33: 38.27 | T33: 10.63 | U33: 11577 | V33: 48.47 | W33: 13.46 | X33: -10 | Y33: -9.6 | AC33: 100 | AD33: =IF(AC33=100,"ОК"," ") -> ОК
A34: 24 | O34: 8252 | P34: 34.55 | Q34: 9.6 | R34: 9141 | S34: 38.27 | T34: 10.63 | W34: 0 | AC34: 0
A35: 25 | O35: 8252 | P35: 34.55 | Q35: 9.6 | R35: 9141 | S35: 38.27 | T35: 10.63 | W35: 0 | AC35: 0
A36: 26 | O36: 8252 | P36: 34.55 | Q36: 9.6 | R36: 9141 | S36: 38.27 | T36: =S36/3.6 -> 10.63 | W36: 0 | Z36: 0.0002 | AA36: 0.0006 | AC36: 0
A37: 27 | O37: 8252 | P37: 34.55 | Q37: 9.6 | R37: 9141 | S37: 38.27 | T37: 10.63 | W37: =V37/3.6 -> 0 | AC37: 0
A38: 28 | O38: 8252 | P38: 34.55 | Q38: 9.6 | R38: 9141 | S38: 38.27 | T38: 10.63 | W38: =V38/3.6 -> 0 | AC38: 0
A39: 29 | O39: 8252 | P39: 34.55 | Q39: =P39/3.6 -> 9.6 | R39: 9141 | S39: 38.27 | T39: =S39/3.6 -> 10.63 | W39: 0 | AC39: 0
A40: 30 | B40: 89.8496 | C40: 4.8977 | D40: 1.0431 | E40: 0.1192 | F40: 0.1923 | G40: 0.0044 | H40: 0.0487 | I40: 0.0422 | J40: 0.071 | K40: 0.0048 | L40: 1.6099 | M40: 2.117 | N40: 0.7518 | O40: 8226 | P40: 34.44 | Q40: =P40/3.6 -> 9.57 | R40: 9112 | S40: 38.15 | T40: =S40/3.6 -> 10.6 | U40: 11533 | V40: 48.29 | W40: 13.41 | X40: -10.2 | Y40: -9.9 | AC40: 100
A41: 31 | O41: 8226 | P41: 34.44 | Q41: =P41/3.6 -> 9.57 | R41: 9112 | S41: 38.15 | T41: =S41/3.6 -> 10.6 | W41: 0 | AC41: 0
A42: Вміст одоранта при одоризації становить 16 г на 1 000 м³ газу | O42: =SUMPRODUCT(O11:O41,' розрахунок12,10'!D7:D37)/' розрахунок12,10'!D38 -> 8255 | P42: =SUMPRODUCT(P11:P41,' розрахунок12,10'!D7:D37)/' розрахунок12,10'!D38 -> 34.56 | Q42: =SUMPRODUCT(Q11:Q41,' розрахунок12,10'!D7:D37)/' розрахунок12,10'!D38 -> 9.6 | R42: =SUMPRODUCT(R11:R41,' розрахунок12,10'!D7:D37)/' розрахунок12,10'!D38 -> 9143 | S42: =SUMPRODUCT(S11:S41,' розрахунок12,10'!D7:D37)/' розрахунок12,10'!D38 -> 38.28 | T42: =SUMPRODUCT(T11:T41,' розрахунок12,10'!D7:D37)/' розрахунок12,10'!D38 -> 10.63
H43: Середньозважене значення теплоти згоряння:
B46: В.о.начальника управління Красилівського ЛВУМГ Семенюк П.В.
C47: Підрозділу підприємства, якому підпорядкована лабораторія | O47: прізвище | R47: підпис | V47: дата
B48: Завідувач лабораторією Пілецька С.А.
C49: Лабораторія, де здійснювалось вимірювання газу | O49: прізвище | R49: підпис | V49: дата
B50: Начальник служби метрології Мягкий С.В.
C51: Підрозділу, відповідального за облік газу за маршрутом | O51: прізвище | R51: підпис | V51: дата

Sheet розрахунок12,10
A2: Додаток до Паспорту фізико-хімічних показників природного газу по маршруту № 12
A4: Число місяця | B4: Теплота згоряння вища, МДж/м3 | C4: Хмельницька область | D4: Загальний обсяг газу, м3
C5: Обсяг газу переданого за добу, м3
C6: ГРС Цимбалівка
A7: 1 | B7: 38.26 | C7: 3434 | D7: =SUM(C7:C7) -> 3434
A8: 2 | B8: 38.22 | C8: 3083 | D8: 3083
A9: 3 | B9: 38.22 | C9: 3184 | D9: 3184
A10: 4 | B10: 38.22 | C10: 3172 | D10: 3172
A11: 5 | B11: 38.22 | C11: 6154 | D11: 6154
A12: 6 | B12: 38.22 | C12: 5191 | D12: 5191
A13: 7 | B13: 38.22 | C13: 6650 | D13: 6650
A14: 8 | B14: 38.22 | C14: 12895 | D14: 12895
A15: 9 | B15: 38.35 | C15: 8527 | D15: 8527
A16: 10 | B16: 38.35 | C16: 15292 | D16: 15292
A17: 11 | B17: 38.35 | C17: 16328 | D17: 16328
A18: 12 | B18: 38.35 | C18: 4758 | D18: 4758
A19: 13 | B19: 38.35 | C19: 5531 | D19: 5531
A20: 14 | B20: 38.35 | C20: 5113 | D20: 5113
A21: 15 | B21: 38.35 | C21: 4251 | D21: 4251
A22: 16 | B22: 38.35 | C22: 8062 | D22: 8062
A23: 17 | B23: 38.3 | C23: 12097 | D23: 12097
A24: 18 | B24: 38.3 | C24: 18796 | D24: 18796
A25: 19 | B25: 38.3 | C25: 26603 | D25: 26603
A26: 20 | B26: 38.3 | C26: 20274 | D26: 20274
A27: 21 | B27: 38.3 | C27: 16341 | D27: 16341
A28: 22 | B28: 38.3 | C28: 25545 | D28: 25545
A29: 23 | B29: 38.27 | C29: 40877 | D29: 40877
A30: 24 | B30: 38.27 | C30: 24022 | D30: 24022
A31: 25 | B31: 38.27 | C31: 28463 | D31: 28463
A32: 26 | B32: 38.27 | C32: 17271 | D32: 17271
A33: 27 | B33: 38.27 | C33: 25344 | D33: 25344
A34: 28 | B34: 38.27 | C34: 26477 | D34: 26477
A35: 29 | B35: 38.27 | C35: 28032 | D35: 28032
A36: 30 | B36: 38.15 | C36: 15743 | D36: 15743
A37: 31 | B37: 38.15 | C37: 16961 | D37: 16961
A38: Загальний обсяг газу, м3 | C38: =SUM(C7:C37) -> 454471 | D38: =SUM(D7:D37) -> 454471
A39: Енергія, МДж | C39: =SUMPRODUCT(B7:B37,C7:C37) -> 17395648.54 | D39: =SUMPRODUCT(B7:B37,D7:D37) -> 17395648.54
A40: Теплота згоряння (середньозважене значення за місяць), МДж/м³ | C40: =C39/C38 -> 38.28 | D40: =D39/D38 -> 38.28
A41: Теплота згоряння (середньозважене значення за місяць), ккал/м³ | C41: =C40*238.8459 -> 9143 | D41: =D40*238.8459 -> 9143
A42: Теплота згоряння (середньозважене значення за місяць), кВт*год./м³ | C42: =C40/3.6 -> 10.63 | D42: =D40/3.6 -> 10.63

Sheet додаток12,10
A2: Додаток до Паспорту фізико-хімічних показників природного газу №12
A4: Область | B4: ГРС, прямий споживач | C4: Cередньозважене значення вищої теплоти згоряння
C5: МДж/м³ | D5: ккал/м³ | E5: кВт*год./м³
A6: Хмельницька область | B6: ГРС Цимбалівка | C6: 38.28 | D6: 9143 | E6: 10.63
A7: Середньозважене значення вищої теплоти згоряння по маршруту № 12 | C7: 38.28 | D7: 9143 | E7: 10.63
A11: В.о.начальника управління Красилівського ЛВУМГ Семенюк П.В.
A12: Підрозділу підприємства, якому підпорядкована лабораторія | D12: прізвище | E12: підпис | F12: дата
A13: Завідувач лабораторією Пілецька С.А.
A14: Лабораторія, де здійснювалось вимірювання газу | D14: прізвище | E14: підпис | F14: дата
A15: Начальник служби метрології Мягкий С.В.
A16: Підрозділу, відповідального за облік газу за маршрутом | D16: прізвище | E16: підпис | F16: дата

Sheet variablesList (hidden)
A1: 3 | B1: x:\gaysin | C1: 10, 11, 24, 25, 127, 128, 132, 180, 207, 215 | D1: x:\
B2: x:\Illinci
B3: x:\Talne
